[Event "Slovakia Open Piestany-A 2022"]
[Site "Piestany"]
[Date "2022.07.18"]
[Round "9.12"]
[White "Kostolansky, Sebastian Lukas"]
[Black "Mullick, Raahil"]
[Result "0-1"]
[ECO "B51"]
[WhiteElo "2406"]
[BlackElo "2237"]
[Annotator "TA"]
[PlyCount "29"]
[EventDate "2022.07.12"]
[EventType "swiss"]
[EventCountry "SVK"]
[SourceTitle "playchess.com"]
[Source "ChessBase"]
[SourceQuality "1"]
[TimeControl "40/5400+30:1800+30"]

{[%evp 9,29,17,20,17,18,22,22,16,24,13,36,31,22,22,18,13,13,10,19,-66,-20,-36]} 1. e4 {[%emt 0:00:03]} c5 {[%emt 0:00:08]} 2. Nf3 {[%emt 0:00:13]} d6 {[%emt 0:00:06]} 3. Bb5+ {[%emt 0:00:05]} Nd7 {[%emt 0:00:08]} 4. a4 {[%emt 0:03:53]} Ngf6 {[%emt 0:02:38]} 5. Nc3 {[%emt 0:00:07]} e6 {[%emt 0:06:06]} 6. O-O {[%emt 0:03:52] B51: Sicilian: Moscow Variation (3 Bb5+) without 3...Bd7.} Be7 {[%emt 0:04:12]} 7. d4 {[%emt 0:11:43]} cxd4 {[%emt 0:03:27]} 8. Qxd4 {[%emt 0:05:56]} O-O {[%emt 0:03:35]} 9. Rd1 {[%emt 0:00:30]} a6 {[%emt 0:02:37] [#] aiming for ...e5.} 10. Be2 {[%emt 0:32:12]} Qc7 {[%emt 0:22:59]} 11. Bg5 {[%emt 0:00:30]} b6 {[%emt 0:00:30]} 12. Nd2 {[%emt 0:00:30]} h6 {[%emt 0:00:30]} 13. Be3 {[%emt 0:00:30]} Rd8 {[%emt 0:16:25] [#]} 14. f4 $146 {[%emt 0:25:53]} (14. Nc4 $11) ({Predecessor:} 14. Nc4 Rb8 15. f4 e5 16. Qd2 Nc5 17. fxe5 Nfxe4 18. Nd5 Nxd2 19. Nxc7 Nxc4 20. Bxc4 dxe5 {0-1 (37) Kostolansky,S (2406)-Mullick,R (2237) Piestany 2022}) 14... Rb8 {[%emt 0:01:06]} (14... Bb7 $15 15. Qb4 Rac8) 15. Kh1 {[%emt 0:10:08] Weighted Error Value: White=0.19 (very precise) /Black=0.08 (flawless)} 0-1

[Event "Slovakia Open Piestany-A 2022"]
[Site "Piestany"]
[Date "2022.07.18"]
[Round "9.13"]
[White "Turcan, Richard"]
[Black "Favaloro, Andrea"]
[Result "1/2-1/2"]
[ECO "C95"]
[WhiteElo "2304"]
[BlackElo "2361"]
[Annotator "TA"]
[PlyCount "47"]
[EventDate "2022.07.12"]
[EventType "swiss"]
[EventCountry "SVK"]
[SourceTitle "playchess.com"]
[Source "ChessBase"]
[SourceQuality "1"]
[TimeControl "40/5400+30:1800+30"]

{[%evp 27,28,31,31]} 1. e4 {[%emt 0:00:37]} e5 {[%emt 0:01:27]} 2. Nf3 {[%emt 0:00:08]} Nc6 {[%emt 0:00:07]} 3. Bb5 {[%emt 0:00:06]} a6 {[%emt 0:00:10]} 4. Ba4 {[%emt 0:00:03]} Nf6 {[%emt 0:00:09]} 5. O-O {[%emt 0:00:07]} Be7 {[%emt 0:00:08]} 6. Re1 {[%emt 0:00:14]} b5 {[%emt 0:00:10]} 7. Bb3 {[%emt 0:00:04]} d6 {[%emt 0:00:09]} 8. c3 {[%emt 0:00:20]} O-O {[%emt 0:00:12]} 9. h3 {[%emt 0:00:10]} Nb8 {[%emt 0:00:12]} 10. d4 {[%emt 0:00:06]} Nbd7 {[%emt 0:00:06]} 11. Nbd2 {[%emt 0:00:31]} Bb7 {[%emt 0:00:12]} 12. Bc2 {[%emt 0:00:06]} Re8 {[%emt 0:00:11]} 13. Nf1 {[%emt 0:00:12]} Bf8 {[%emt 0:00:12]} 14. Ng3 {[%emt 0:00:07]} g6 {[%emt 0:00:06] [#]} {Predecessor:} 15. Bd2 $146 {C95: Closed Ruy Lopez: Breyer Variation with 10 d4.} Bg7 16. Qc1 d5 17. Bg5 dxe4 18. Bxe4 Bxe4 19. Nxe4 exd4 20. cxd4 Qc8 21. Nxf6+ Nxf6 22. Qc6 Qd7 23. Rxe8+ Qxe8 24. Qxc7 {½-½ (44) Esipenko,A (2682)-Kamsky,G (2655) Biel 2022} 1/2-1/2

[Event "Slovakia Open Piestany-A 2022"]
[Site "Piestany"]
[Date "2022.07.18"]
[Round "9.15"]
[White "Marek, Matyas"]
[Black "Holly, Andrej"]
[Result "1-0"]
[ECO "D00"]
[WhiteElo "2354"]
[BlackElo "2213"]
[Annotator "TA"]
[PlyCount "73"]
[EventDate "2022.07.12"]
[EventType "swiss"]
[EventCountry "SVK"]
[SourceTitle "playchess.com"]
[Source "ChessBase"]
[SourceQuality "1"]
[TimeControl "40/5400+30:1800+30"]

{[%evp 9,73,-8,-10,-8,3,8,28,31,31,7,13,0,0,-34,-19,-40,-52,-51,0,-16,0,-18,39,52,51,61,61,10,25,-8,19,-27,-27,-27,-27,-17,-3,-37,-23,-15,-53,-47,86,100,102,0,947,918,1132,206,214,125,29939,12847,6514,6295,5269,1332,1343,1281,1251,1018,1018,864,3656,3331]} 1. d4 {[%emt 0:00:46]} Nf6 {[%emt 0:00:25]} 2. Nc3 {[%emt 0:00:16]} e6 {[%emt 0:01:25]} 3. Bf4 {[%emt 0:01:11]} d5 {[%emt 0:02:05]} 4. e3 {[%emt 0:00:06]} Bd6 {[%emt 0:01:07]} 5. Nf3 {[%emt 0:00:11]} O-O {[%emt 0:01:24]} 6. Bd3 {[%emt 0:00:13] D00: 1 d4 d5: Unusual lines.} c5 {[%emt 0:02:24]} 7. dxc5 {[%emt 0:00:07]} Bxf4 {[%emt 0:04:46]} 8. exf4 {[%emt 0:00:08] White has an edge.} Qc7 {[%emt 0:00:34][%csl LRc5,LRf4]} 9. Ne5 {[%emt 0:02:08]} Nbd7 {[%emt 0:02:37]} 10. Qe2 {[%emt 0:00:34]} Nxc5 {[%emt 0:01:05] [#]} 11. O-O-O $146 {[%emt 0:00:44]} ({Predecessor:} 11. O-O Bd7 12. Qe3 Rfc8 13. Rfd1 Qb6 14. Rab1 Be8 15. Ne2 Nxd3 16. cxd3 Qxe3 17. fxe3 {½-½ (52) Matros,A (2442)-Liang,J (2340) Charlotte 2020}) 11... a6 {[%emt 0:02:36]} 12. Kb1 {[%emt 0:04:43]} b5 {[%emt 0:02:05] Strongly threatening ...b4.} 13. Qe3 {[%emt 0:00:31]} Rb8 {[%emt 0:08:50]} 14. Ne2 {[%emt 0:02:14]} b4 {[%emt 0:03:30]} 15. Nd4 {[%emt 0:02:40]} Bd7 {[%emt 0:03:05] Prevents Ndc6.} ({Black should try} 15... Nfe4 $11) 16. g4 $14 {[%emt 0:02:23]} Nfe4 {[%emt 0:01:37]} 17. Bxe4 {[%emt 0:03:55]} Nxe4 {[%emt 0:00:35]} 18. f3 {[%emt 0:02:04]} (18. h4 $14) 18... Nd6 $1 $11 {[%emt 0:01:48]} 19. Rhe1 {[%emt 0:00:22]} Rfc8 {[%emt 0:03:17]} 20. Qc1 {[%emt 0:10:33]} (20. h4 {should be considered.}) 20... a5 {[%emt 0:03:16][%cal Ba6a5,Ba5a4][%mdl 32]} 21. h4 {[%emt 0:02:39][%cal Bh2h4,Bh4h5,Bh5h6][%mdl 32]} a4 {[%emt 0:00:47]} 22. h5 {[%emt 0:01:19][%cal Oh5h6]} Nc4 {[%emt 0:02:31]} 23. Nxc4 {[%emt 0:03:15]} dxc4 {[%emt 0:00:27]} 24. h6 {[%emt 0:01:06]} c3 {[%emt 0:07:19] Threatens to win with ...b3.} (24... gxh6 25. f5 b3 26. Qxh6 (26. fxe6 bxc2+ 27. Kxc2 c3 $11) 26... bxc2+ 27. Nxc2 $16) 25. f5 $1 {[%emt 0:02:31]} g6 {[%emt 0:07:20]} (25... Be8 $1 $15 {keeps the upper hand.} 26. Qg5 (26. fxe6 b3 $19) 26... f6 27. Qxg7+ Qxg7 28. hxg7 e5) 26. Qg5 $1 $16 {[%emt 0:11:12] Threatening mate with Qf6.} (26. fxe6 fxe6 27. b3 (27. Nxe6 $2 Bxe6 28. Qe3 Re8 $19) 27... axb3 28. Nxb3 Qa7 $15) 26... Qd8 {[%emt 0:03:27] Inhibits Qf6.} (26... b3 27. Qf6 bxa2+ 28. Kxa2 Qc4+ 29. Ka1 cxb2+ 30. Kb1) 27. Qe3 {[%emt 0:00:07] White is more active.} ({White must play} 27. Qxd8+ $1 $16 Rxd8 28. fxe6 fxe6 29. bxc3 (29. Nxe6 $2 Bxe6 30. Rxd8+ Rxd8 $19)) 27... exf5 $2 {[%emt 0:02:30][%mdl 8192] [#]} (27... b3 $11 28. bxc3 (28. cxb3 $2 axb3 29. axb3 Rxb3 $19) 28... bxa2+ 29. Kxa2 Qc7) 28. Nxf5 $1 $18 {[%emt 0:18:08][%cal Oe3e5][%mdl 512] White wants to mate with Qe5!} gxf5 {[%emt 0:02:07] [#]} (28... b3 29. Ne7+) 29. Rxd7 $1 {[%emt 0:01:13][%mdl 512]} Qf6 {[%emt 0:00:14] [#]} 30. Re7 $40 {[%emt 0:04:59][%mdl 128] White attacks with force.} ({Better is} 30. Rb7 $3 $18 {[%mdl 512] White threatens Rxb8 and mate.} Ra8 31. Rxb4) 30... Kf8 $2 {[%emt 0:02:35][%mdl 8192] This costs Black the game.} (30... cxb2 $2 {gets mated.} 31. Re8+ $3 {[%mdl 512]} Rxe8 32. Qxe8+ Rxe8 33. Rxe8#) (30... Rf8 $16) 31. g5 {[%emt 0:02:34]} Qd6 {[%emt 0:01:37] White is clearly winning.} 32. Qa7 {[%emt 0:01:40][%csl LRa4,LRf7]} Qd5 {[%emt 0:01:47]} 33. Rd7 {[%emt 0:08:21]} (33. g6 $142 hxg6 {[#]} 34. Rxf7+ $3 {[%mdl 512]} Qxf7 35. h7 Qxa7 36. h8=Q+ Kf7 37. Qh7+ Kf6 38. Qxa7) 33... Re8 {[%emt 0:04:54]} 34. Qxb8 $1 {[%emt 0:00:39][%csl Gb8][%cal Re1e8]} (34. Rxd5 $2 {leads to mate.} Rxe1+) 34... Qxd7 {[%emt 0:00:40]} 35. Rxe8+ {[%emt 0:00:35]} Qxe8 {[%emt 0:00:08]} 36. Qxb4+ {[%emt 0:00:02]} Qe7 {[%emt 0:00:45]} 37. bxc3 {[%emt 0:00:16] Weighted Error Value: White=0.39/Black=0.44} 1-0

[Event "Slovakia Open Piestany-A 2022"]
[Site "Piestany"]
[Date "2022.07.18"]
[Round "9.16"]
[White "Palchuk, Andrii"]
[Black "Bhambure, Shantanu"]
[Result "1-0"]
[ECO "E04"]
[WhiteElo "2248"]
[BlackElo "2320"]
[Annotator "TA"]
[PlyCount "61"]
[EventDate "2022.07.12"]
[EventType "swiss"]
[EventCountry "SVK"]
[SourceTitle "playchess.com"]
[Source "ChessBase"]
[SourceQuality "1"]
[TimeControl "40/5400+30:1800+30"]

{[%evp 9,60,15,15,-2,15,15,15,20,35,37,47,27,91,89,116,91,89,72,168,159,156,74,115,61,62,43,103,49,42,40,47,45,63,54,45,50,47,48,113,113,111,106,110,105,266,262,822,814,1056,1045,29998,29999,29999]} 1. d4 {[%emt 0:04:49]} Nf6 {[%emt 0:00:07]} 2. c4 {[%emt 0:01:38]} e6 {[%emt 0:00:05]} 3. g3 {[%emt 0:00:04]} d5 {[%emt 0:01:03]} 4. Nf3 {[%emt 0:00:10]} c6 {[%emt 0:00:18]} 5. Bg2 {[%emt 0:02:01]} dxc4 {[%emt 0:00:06]} 6. a4 {[%emt 0:06:52] E04: Open Catalan: 5 Nf3.} (6. Ne5 {is interesting.} Bb4+ 7. Nc3 Nd5 8. Bd2) 6... c5 {[%emt 0:02:30]} 7. O-O {[%emt 0:04:09]} Nc6 {[%emt 0:00:49][%cal Rc5d4]} 8. dxc5 {[%emt 0:00:10] The position is equal.} Bxc5 {[%emt 0:07:14]} 9. Qxd8+ {[%emt 0:06:46]} Kxd8 {[%emt 0:01:12]} 10. Nbd2 {[%emt 0:00:15] [#]} c3 $146 {[%emt 0:06:37]} (10... Nd5 $11 {keeps the balance.}) ({Predecessor:} 10... Nd5 11. Nxc4 f6 12. Bd2 Ke7 13. Rfc1 b6 14. a5 Bd7 15. e3 Rhc8 16. Ne1 Nxa5 17. Nxa5 bxa5 {½-½ (76) Can,E (2577)-Abdusattorov,N (2648) Sharjah 2021}) 11. bxc3 $16 {[%emt 0:00:06]} Ke7 {[%emt 0:01:16]} 12. Nb3 {[%emt 0:07:26]} Bd6 {[%emt 0:01:14]} 13. Nfd4 {[%emt 0:02:46]} Nd5 {[%emt 0:27:11] [#]} (13... Nxd4 $16 {was worth a try.} 14. cxd4 Bb4) 14. Nb5 $1 $18 {[%emt 0:12:33]} Rd8 {[%emt 0:09:53]} 15. Rd1 {[%emt 0:07:53]} (15. e4 $142 Nf6 16. f4) 15... Bb8 {[%emt 0:02:47]} 16. e4 {[%emt 0:22:59]} ({White should try} 16. Ba3+ $16 Ke8 17. Bc5) 16... Nb6 $14 {[%emt 0:03:17]} 17. Rxd8 {[%emt 0:00:58]} Kxd8 {[%emt 0:01:39] [#]} (17... Nxd8 $14 18. a5 Nc4) 18. Bf1 {[%emt 0:00:44]} (18. a5 $1 $16 {[%cal Ra5b6]} Nc4 19. a6) 18... a6 {[%emt 0:02:18]} 19. Be3 {[%emt 0:02:50]} Nd7 {[%emt 0:01:13]} 20. N5d4 {[%emt 0:01:40]} Bd6 {[%emt 0:12:35]} 21. Nxc6+ {[%emt 0:07:26]} bxc6 {[%emt 0:00:05]} 22. Na5 {[%emt 0:00:05]} Kc7 {[%emt 0:06:36]} 23. Nc4 $36 {[%emt 0:00:18][%mdl 2048] Black is under pressure.} f6 {[%emt 0:02:44]} (23... a5 $14) 24. Rd1 $16 {[%emt 0:03:28]} Be7 {[%emt 0:02:38]} 25. a5 {[%emt 0:00:41] White is much more active.} c5 {[%emt 0:05:25]} 26. Bh3 {[%emt 0:00:49]} Nf8 $2 {[%emt 0:00:16] This costs Black the game.} (26... Rb8 $16 {was called for.}) 27. Nb6 $18 {[%emt 0:00:25]} Ra7 {[%emt 0:01:06]} (27... Rb8 28. Bf4+ e5) 28. Bf4+ {[%emt 0:00:22]} Kb7 {[%emt 0:00:13]} 29. Rb1 {[%emt 0:02:19] Nd7+ would kill now.} g5 {[%emt 0:00:33]} 30. Nd7+ {[%emt 0:00:08]} Kc6 {[%emt 0:00:40]} 31. Nb8# {[%emt 0:00:05] Weighted Error Value: White=0.09 (flawless) /Black=0.56} 1-0

[Event "Slovakia Open Piestany-A 2022"]
[Site "Piestany"]
[Date "2022.07.18"]
[Round "9.17"]
[White "Leszko, Bence"]
[Black "Travnicek, Krystof Mikulas"]
[Result "1/2-1/2"]
[ECO "C00"]
[WhiteElo "2241"]
[BlackElo "2138"]
[Annotator "TA"]
[PlyCount "80"]
[EventDate "2022.07.12"]
[EventType "swiss"]
[EventCountry "SVK"]
[SourceTitle "playchess.com"]
[Source "ChessBase"]
[SourceQuality "1"]
[TimeControl "40/5400+30:1800+30"]

{[%evp 13,80,0,12,-35,-31,-47,-48,-49,-55,-68,-30,-30,-22,-30,0,-25,0,-26,35,25,19,19,37,44,49,43,44,0,2,0,0,-16,-16,-20,-15,-17,-7,-19,0,0,0,0,0,0,0,0,0,0,0,-83,-91,-86,-86,-91,-89,-92,-77,-112,-83,-81,0,0,0,0,0,0,0,0,0]} 1. e4 {[%emt 0:03:43]} e6 {[%emt 0:00:16]} 2. Qe2 {[%emt 0:01:11]} Be7 {[%emt 0:01:08]} 3. g3 {[%emt 0:00:36]} d5 {[%emt 0:02:08]} 4. d3 {[%emt 0:00:20]} Nf6 {[%emt 0:03:45]} 5. Bg2 {[%emt 0:00:30]} c5 {[%emt 0:04:43]} 6. Nf3 {[%emt 0:01:05]} Nc6 {[%emt 0:01:42] 6...0-0 is not played anymore.} 7. O-O {[%emt 0:00:23]} b5 {[%emt 0:07:43]} 8. e5 {[%emt 0:02:34] C00: French: Unusual White 2nd moves.} (8. exd5 $11 exd5 9. d4) 8... Nd7 $1 $15 {[%emt 0:00:38]} 9. c4 {[%emt 0:00:53]} bxc4 {[%emt 0:03:27]} 10. dxc4 {[%emt 0:00:09] Black is slightly better.} Ba6 {[%emt 0:00:28]} 11. Na3 {[%emt 0:02:42]} Nb6 {[%emt 0:02:22][%cal Ra6c4]} 12. b3 {[%emt 0:05:11]} O-O {[%emt 0:07:19] [#]} 13. h4 $146 {[%emt 0:04:08]} ({Predecessor:} 13. Nb5 Qd7 14. Bd2 Rad8 15. a4 Bb7 16. a5 Nc8 17. a6 Ba8 18. Rfd1 Nb6 19. Ng5 {½-½ (36) Wierzbicki,J (2187)-Boetzer,D (2218) Berlin 2018}) 13... Qd7 {[%emt 0:12:39]} 14. Rd1 {[%emt 0:03:46]} Rab8 {[%emt 0:03:31]} 15. Bf4 {[%emt 0:03:34]} Nd4 {[%emt 0:05:18]} (15... Qc8 $11) 16. Nxd4 $14 {[%emt 0:02:26]} cxd4 {[%emt 0:00:03]} 17. Nc2 {[%emt 0:00:11]} dxc4 {[%emt 0:02:37]} 18. Nxd4 {[%emt 0:02:04] Nc6 is the strong threat.} Nd5 {[%emt 0:03:56]} 19. Qg4 {[%emt 0:08:15] [#] And now Bh6 would win.} Rfd8 {[%emt 0:06:59]} 20. bxc4 {[%emt 0:07:11]} Bxc4 {[%emt 0:03:49]} (20... Nxf4 21. Nc6 Nh3+ 22. Qxh3 Qxd1+ 23. Rxd1 Rxd1+ 24. Kh2 $14) 21. Bh6 {[%emt 0:10:14][%csl Gh6][%cal Rg4g7]} Bf8 {[%emt 0:00:50]} 22. Bg5 {[%emt 0:00:41]} (22. h5 $5 {[%cal Rh6g7]} Kh8 23. Nf5 gxh6 24. Qxc4 $14) 22... Rdc8 {[%emt 0:01:32]} 23. Rd2 {[%emt 0:07:15] Inhibits Rb2.} Rb4 {[%emt 0:06:08]} 24. Nc2 {[%emt 0:05:23]} Rb2 {[%emt 0:01:47]} 25. Rad1 {[%emt 0:05:46]} Qc7 {[%emt 0:02:11][%cal Oc4e2]} ({Don't take} 25... Rxa2 26. Bxd5 Bxd5 27. Rxd5 $18) 26. Ne3 {[%emt 0:10:44]} Rxd2 {[%emt 0:02:02]} 27. Rxd2 {[%emt 0:00:01]} Nxe3 {[%emt 0:01:16]} 28. Bxe3 {[%emt 0:00:06] aiming for Rc2.} Qxe5 {[%emt 0:02:05]} 29. Bb7 {[%emt 0:06:33]} Rc7 $36 {[%emt 0:02:19][%mdl 2048] Black fights for an advantage.} 30. Bf3 {[%emt 0:01:42]} Bd5 {[%emt 0:03:01]} 31. Kh2 {[%emt 0:01:41] [#]} (31. Bxd5 $11 {keeps the balance.} exd5 32. Qd4 Qxd4 33. Rxd4) 31... f5 $1 $17 {[%emt 0:01:03]} 32. Qf4 {[%emt 0:02:36]} Qxf4 {[%emt 0:00:16]} 33. Bxf4 {[%emt 0:00:02]} Rd7 {[%emt 0:00:55]} 34. Be3 {[%emt 0:00:50]} Kf7 {[%emt 0:02:09]} 35. Be2 {[%emt 0:00:21]} Bb4 {[%emt 0:02:35]} 36. Rc2 {[%emt 0:00:37]} Ke7 {[%emt 0:01:48]} (36... Be4 $17 37. Rc1 Ba5) 37. Bb5 $11 {[%emt 0:00:24] The position is equal.} Rb7 {[%emt 0:00:22]} 38. Ba6 {[%emt 0:00:20]} Rd7 {[%emt 0:00:47]} 39. Bb5 {[%emt 0:00:30]} Rb7 {[%emt 0:00:31]} 40. Ba6 {[%emt 0:00:05]} Rd7 {[%emt 0:01:14] Weighted Error Value: White=0.12 (very precise) /Black=0.13 (very precise)} 1/2-1/2

[Event "Slovakia Open Piestany-A 2022"]
[Site "Piestany"]
[Date "2022.07.18"]
[Round "9.18"]
[White "Nadzamova, Viktoria"]
[Black "Matras, Ondrej"]
[Result "0-1"]
[ECO "A46"]
[WhiteElo "2133"]
[BlackElo "2229"]
[Annotator "TA"]
[PlyCount "110"]
[EventDate "2022.07.12"]
[EventType "swiss"]
[EventCountry "SVK"]
[SourceTitle "playchess.com"]
[Source "ChessBase"]
[SourceQuality "1"]
[TimeControl "40/5400+30:1800+30"]

{[%evp 9,110,33,49,39,50,21,77,64,79,68,73,53,87,37,56,19,77,0,0,0,24,-50,-33,-47,-49,-89,-92,-63,-68,-64,-46,-156,-149,-147,-138,-231,-224,-256,-277,-267,-120,-121,-121,-129,-119,-116,-109,-109,-109,-113,-99,-109,-109,-150,-150,-150,-150,-359,-245,-245,-172,-178,-172,-470,-447,-367,-354,-388,-362,-381,-356,-372,-239,-350,-310,-470,-473,-618,-595,-791,-773,-10789,-9213,-7163,-7024,-5535,-5594,-4778,-3828,-2243,-2085,-1817,-1802,-1716,-1567,-1683,-1341,-12842,-12842,-12842,-1638,-1109,-887]} 1. d4 {[%emt 0:06:19]} Nf6 {[%emt 0:00:24]} 2. Nf3 {[%emt 0:00:17]} d6 {[%emt 0:01:07]} 3. g3 {[%emt 0:01:21]} Bg4 {[%emt 0:01:24]} 4. Bg2 {[%emt 0:00:48]} c6 {[%emt 0:00:04]} 5. h3 {[%emt 0:03:06]} Bf5 {[%emt 0:00:04]} 6. c4 {[%emt 0:01:36] A46: 1 d4 Nf6 2 Nf3 e6: Torre, London and Colle Systems.} h6 {[%emt 0:01:04]} 7. O-O {[%emt 0:09:04]} g5 {[%emt 0:00:10]} (7... e6 $11 {remains equal.}) 8. Nc3 $16 {[%emt 0:02:35] [#] White is better.} Qd7 $146 {[%emt 0:00:48]} ({Predecessor:} 8... Bg7 9. Re1 Ne4 10. Qc2 d5 11. cxd5 Nxc3 12. Qxf5 Nxd5 13. e4 Nf6 14. e5 Nd5 15. Bxg5 {1-0 (49) Rodriguez,L (2155)-Reis,L (2225) Caldas da Felgueira 1999}) 9. g4 {[%emt 0:02:49]} Bg6 {[%emt 0:00:12]} 10. Nh2 {[%emt 0:07:30]} (10. Ne1 {with more complications.} h5 11. f3 hxg4 12. fxg4 Bg7 13. Bxg5 Nxg4 14. hxg4 Qxg4 15. Nf3) 10... Na6 {[%emt 0:00:40][%cal Bb8a6,Ba6c5,Bc5e6,Be6d4][%mdl 32]} 11. e4 {[%emt 0:01:56]} (11. f4 $16) 11... e5 {[%emt 0:01:20]} 12. Qf3 {[%emt 0:05:46]} Be7 {[%emt 0:02:11]} (12... Bg7 $11) 13. dxe5 {[%emt 0:04:54]} (13. Be3 $1 $16) 13... dxe5 $11 {[%emt 0:00:03]} 14. Rd1 {[%emt 0:00:21]} Qc7 {[%emt 0:00:26]} 15. Nf1 {[%emt 0:04:05]} (15. Be3 $11) 15... Nc5 $15 {[%emt 0:00:42]} 16. Ng3 {[%emt 0:01:25]} Ne6 {[%emt 0:01:11]} 17. Nf5 {[%emt 0:01:10] Inhibits Nd4.} Bxf5 {[%emt 0:01:55]} 18. exf5 {[%emt 0:01:55]} Nd4 {[%emt 0:00:49] Pair of Knights!} 19. Qg3 {[%emt 0:03:14]} O-O-O {[%emt 0:01:50][%cal Od4e2] ...Ne2+! is the strong threat.} 20. Be3 {[%emt 0:00:48]} ({White should play} 20. Bd2 $1 $15) 20... Bd6 $1 $36 {[%emt 0:02:12][%cal Oe5e4][%mdl 2048] Strongly threatening ...e4! Black is on the roll. Black is more active.} 21. c5 {[%emt 0:12:41]} Bxc5 {[%emt 0:00:55]} 22. Rd2 {[%emt 0:00:43] [#]} (22. Rac1 $17 {was called for.}) 22... Bd6 $1 $19 {[%emt 0:02:31][%cal Oe5e4]} 23. Ne4 {[%emt 0:02:46]} Nxe4 {[%emt 0:00:40]} 24. Bxe4 {[%emt 0:00:02] [#]} Bb4 {[%emt 0:00:48]} (24... Qa5 $1 $19 {has better winning chances. And now ...Bb4 would win.} 25. Rad1 Bb4 26. Bxd4 Bxd2 27. Qxe5 Rhe8 28. Qxa5 Bxa5) 25. Bxd4 $17 {[%emt 0:01:42]} exd4 {[%emt 0:01:38]} ({Much weaker is} 25... Bxd2 $6 26. Bxe5 Qa5 27. Bxh8 Rxh8 28. Rd1 $11) 26. Qxc7+ {[%emt 0:03:42]} Kxc7 {[%emt 0:00:02]} 27. Rdd1 {[%emt 0:00:06]} Be7 {[%emt 0:02:09][%cal Bb4e7,Be7f6,Bf6e5][%mdl 32]} 28. Rac1 {[%emt 0:02:48]} Bf6 {[%emt 0:00:24]} 29. Bd3 {[%emt 0:00:55]} Kd6 {[%emt 0:00:30]} 30. a4 {[%emt 0:03:55]} h5 {[%emt 0:02:35]} 31. Kg2 {[%emt 0:01:33]} hxg4 {[%emt 0:00:50]} 32. hxg4 {[%emt 0:00:05]} Rh4 {[%emt 0:00:23]} 33. f3 $2 {[%emt 0:02:26] Loses the game.} (33. Be2 $17) 33... Be5 {[%emt 0:00:13]} 34. Rh1 {[%emt 0:01:40]} Rdh8 {[%emt 0:00:15]} 35. Rxh4 {[%emt 0:03:19]} Rxh4 $19 {[%emt 0:00:02][%mdl 4096] Endgame KRB-KRB} 36. b3 $2 {[%emt 0:03:27]} (36. Rc2 {only move.}) 36... Rh2+ {[%emt 0:00:18]} 37. Kg1 {[%emt 0:00:10]} Rb2 {[%emt 0:00:38]} 38. Bc4 {[%emt 0:01:29]} f6 {[%emt 0:00:02]} 39. Re1 {[%emt 0:01:39]} a6 {[%emt 0:00:13][%cal Ba7a6,Ba6b5][%mdl 32]} 40. Kf1 {[%emt 0:01:19]} Rh2 {[%emt 0:09:26]} 41. Kg1 {[%emt 0:08:54]} (41. a5 $142) 41... Rc2 {[%emt 0:00:31] White must now prevent ...b5.} 42. Kf1 {[%emt 0:03:11]} (42. Rb1 $142) 42... b5 {[%emt 0:00:06] Black is clearly winning.} 43. axb5 {[%emt 0:00:33]} axb5 {[%emt 0:00:02]} 44. Bf7 {[%emt 0:00:39]} d3 {[%emt 0:00:23][%cal Bd4d3,Bd3d2][%mdl 32]} 45. Re3 {[%emt 0:05:38]} d2 {[%emt 0:00:24]} 46. Ke2 {[%emt 0:02:25]} Bf4 {[%emt 0:00:19]} 47. Rd3+ {[%emt 0:01:51]} Ke7 {[%emt 0:00:27]} 48. Be6 {[%emt 0:00:29]} Rc1 {[%emt 0:00:12]} 49. Rd7+ {[%emt 0:02:53]} Ke8 {[%emt 0:00:04]} 50. Rxd2 {[%emt 0:00:39]} Bxd2 {[%emt 0:00:03]} 51. Kxd2 {[%emt 0:00:01] KR-KB} Rc5 {[%emt 0:00:45]} 52. Kd3 {[%emt 0:00:26]} Ke7 {[%emt 0:00:04] Threatens to win with ...Re5.} 53. Ke4 {[%emt 0:02:00]} Re5+ {[%emt 0:00:09]} 54. Kd4 {[%emt 0:00:30]} Kd6 {[%emt 0:00:45]} (54... c5+ $142 55. Kd3 Rxe6 56. fxe6 Kxe6) 55. Bf7 {[%emt 0:01:05]} Re1 {[%emt 0:00:18] Weighted Error Value: White=0.79/Black=0.29 (precise)} 0-1